[Event "*** Titled Tuesday Blitz"]
[Site "Chess.com"]
[Date "2020.04.14"]
[Round "7"]
[White "LordIron"]
[Black "Vusatiuk_Vladimir"]
[Result "1-0"]
[WhiteElo "2234"]
[BlackElo "2353"]
[TimeControl "180+1"]
[EndTime "11:14:11 PDT"]
[Termination "LordIron won by checkmate"]

1. d4 {[%clk 0:03:00.9]} 1... Nf6 {[%clk 0:00:04.5]} 2. c4 {[%clk 0:02:39.3]}
2... e6 {[%clk 0:00:04.8]} 3. Nf3 {[%clk 0:02:39.2]} 3... d5 {[%clk 0:00:05.7]}
4. g3 {[%clk 0:02:39.5]} 4... Be7 {[%clk 0:00:06.3]} 5. Bg2 {[%clk 0:02:40]}
5... O-O {[%clk 0:00:06.9]} 6. O-O {[%clk 0:02:40.6]} 6... c6 {[%clk 0:00:07.8]}
7. b3 {[%clk 0:02:40.7]} 7... Nbd7 {[%clk 0:00:08.3]} 8. Bb2 {[%clk 0:02:41.2]}
8... Re8 {[%clk 0:00:08.7]} 9. Nbd2 {[%clk 0:02:41.8]} 9... Bd6 {[%clk 0:00:09]}
10. Qc2 {[%clk 0:02:39]} 10... e5 {[%clk 0:00:08.1]} 11. dxe5 {[%clk 0:02:38.4]}
11... Nxe5 {[%clk 0:00:09]} 12. Nxe5 {[%clk 0:02:38.8]} 12... Bxe5 {[%clk
0:00:09.9]} 13. Bxe5 {[%clk 0:02:38.5]} 13... Rxe5 {[%clk 0:00:10.8]} 14. cxd5
{[%clk 0:02:35.8]} 14... Nxd5 {[%clk 0:00:10.2]} 15. Nc4 {[%clk 0:02:34.8]}
15... Re8 {[%clk 0:00:09.7]} 16. Rad1 {[%clk 0:02:34.5]} 16... Be6 {[%clk
0:00:10.1]} 17. e4 {[%clk 0:02:33.8]} 17... Qf6 {[%clk 0:00:09.6]} 18. exd5
{[%clk 0:02:32.3]} 18... cxd5 {[%clk 0:00:10.5]} 19. Ne3 {[%clk 0:02:26.2]}
19... d4 {[%clk 0:00:09.7]} 20. Nd5 {[%clk 0:02:21.5]} 20... Qg5 {[%clk
0:00:07.4]} 21. Nc7 {[%clk 0:02:18.3]} 21... Rac8 {[%clk 0:00:03.3]} 22. Nxe6
{[%clk 0:02:15.5]} 22... fxe6 {[%clk 0:00:04.2]} 23. Qe4 {[%clk 0:02:12.1]}
23... e5 {[%clk 0:00:04.5]} 24. Qxb7 {[%clk 0:02:06.3]} 24... Rc3 {[%clk
0:00:04.7]} 25. f4 {[%clk 0:01:59]} 25... exf4 {[%clk 0:00:04.3]} 26. gxf4
{[%clk 0:01:58.5]} 26... Qg4 {[%clk 0:00:03.8]} 27. Qd5+ {[%clk 0:01:51.6]}
27... Kh8 {[%clk 0:00:02.7]} 28. Qxd4 {[%clk 0:01:52.1]} 28... Rc2 {[%clk
0:00:02.7]} 29. Rd2 {[%clk 0:01:48.8]} 29... Rxd2 {[%clk 0:00:02]} 30. Qxd2
{[%clk 0:01:48.4]} 30... h5 {[%clk 0:00:02.9]} 31. h3 {[%clk 0:01:40.7]} 31...
Qg3 {[%clk 0:00:02.4]} 32. Qf2 {[%clk 0:01:40.4]} 32... Qg6 {[%clk 0:00:02.5]}
33. Kh2 {[%clk 0:01:40.4]} 33... Qf6 {[%clk 0:00:01.4]} 34. Re1 {[%clk
0:01:39.7]} 34... h4 {[%clk 0:00:02.3]} 35. Rxe8+ {[%clk 0:01:38.3]} 35... Kh7
{[%clk 0:00:02.9]} 36. Be4+ {[%clk 0:01:29.1]} 36... g6 {[%clk 0:00:02.2]} 37.
Qxa7+ {[%clk 0:01:26.1]} 37... Kh6 {[%clk 0:00:02.4]} 38. Qe3 {[%clk 0:01:13.4]}
38... Qb2+ {[%clk 0:00:02.2]} 39. Bg2 {[%clk 0:01:12.5]} 39... Qf6 {[%clk
0:00:02.6]} 40. f5+ {[%clk 0:01:10.9]} 40... Kg7 {[%clk 0:00:02.3]} 41. Qe7+
{[%clk 0:01:05.3]} 41... Qxe7 {[%clk 0:00:02.2]} 42. Rxe7+ {[%clk 0:01:06.2]}
42... Kf6 {[%clk 0:00:02.7]} 43. Rh7 {[%clk 0:01:03]} 43... gxf5 {[%clk
0:00:03.6]} 44. Rxh4 {[%clk 0:01:02.9]} 44... Kg5 {[%clk 0:00:04.5]} 45. Rd4
{[%clk 0:01:02.5]} 45... f4 {[%clk 0:00:05.4]} 46. b4 {[%clk 0:00:59.8]} 46...
Kf5 {[%clk 0:00:06.3]} 47. b5 {[%clk 0:00:59.6]} 47... Ke5 {[%clk 0:00:07.2]}
48. Rd5+ {[%clk 0:00:59.6]} 48... Ke6 {[%clk 0:00:06.7]} 49. b6 {[%clk
0:00:59.2]} 49... f3 {[%clk 0:00:07.3]} 50. Bxf3 {[%clk 0:00:58.9]} 50... Kf6
{[%clk 0:00:07.9]} 51. b7 {[%clk 0:00:58.7]} 51... Ke7 {[%clk 0:00:08.5]} 52. a4
{[%clk 0:00:58.3]} 52... Ke6 {[%clk 0:00:09.4]} 53. a5 {[%clk 0:00:58.6]} 53...
Ke7 {[%clk 0:00:10.3]} 54. a6 {[%clk 0:00:59]} 54... Ke6 {[%clk 0:00:11.2]} 55.
a7 {[%clk 0:00:59.4]} 55... Ke7 {[%clk 0:00:12.1]} 56. b8=R {[%clk 0:00:58.9]}
56... Ke6 {[%clk 0:00:13]} 57. a8=R {[%clk 0:00:58.5]} 57... Ke7 {[%clk
0:00:13.8]} 58. Rb7+ {[%clk 0:00:57.8]} 58... Ke6 {[%clk 0:00:14.7]} 59. Ra6#
{[%clk 0:00:57.8]} 1-0

[Event "*** Titled Tuesday Blitz"]
[Site "Chess.com"]
[Date "2020.04.14"]
[Round "7"]
[White "temus_galaktionov"]
[Black "gena217"]
[Result "1/2-1/2"]
[WhiteElo "2785"]
[BlackElo "2912"]
[TimeControl "180+1"]
[EndTime "11:14:12 PDT"]
[Termination "Game drawn by repetition"]

1. d4 {[%clk 0:03:00.9]} 1... Nf6 {[%clk 0:02:58.1]} 2. Nf3 {[%clk 0:03:00.2]}
2... d5 {[%clk 0:02:58.1]} 3. c4 {[%clk 0:03:00]} 3... e6 {[%clk 0:02:58.5]} 4.
Nc3 {[%clk 0:02:59.3]} 4... dxc4 {[%clk 0:02:57.6]} 5. e3 {[%clk 0:02:58.9]}
5... a6 {[%clk 0:02:57.9]} 6. a4 {[%clk 0:02:58.4]} 6... c5 {[%clk 0:02:58.1]}
7. Bxc4 {[%clk 0:02:57.5]} 7... Nc6 {[%clk 0:02:58.5]} 8. dxc5 {[%clk
0:02:57.4]} 8... Qxd1+ {[%clk 0:02:57.7]} 9. Kxd1 {[%clk 0:02:58.3]} 9... Bxc5
{[%clk 0:02:57.7]} 10. Ke2 {[%clk 0:02:59.2]} 10... b6 {[%clk 0:02:56.3]} 11.
Rd1 {[%clk 0:02:59.2]} 11... Bb7 {[%clk 0:02:56.1]} 12. Bd2 {[%clk 0:02:44.1]}
12... Ke7 {[%clk 0:02:52.6]} 13. Be1 {[%clk 0:02:44.1]} 13... Rhc8 {[%clk
0:02:47.7]} 14. Rac1 {[%clk 0:02:43.2]} 14... Bd6 {[%clk 0:02:30.3]} 15. Ba2
{[%clk 0:02:30.4]} 15... Ne5 {[%clk 0:02:20.5]} 16. Nxe5 {[%clk 0:01:44.7]}
16... Bxe5 {[%clk 0:02:21.4]} 17. f4 {[%clk 0:01:45]} 17... Bd6 {[%clk
0:02:10.3]} 18. g3 {[%clk 0:01:42.1]} 18... Bc6 {[%clk 0:02:00.7]} 19. Rd3
{[%clk 0:01:35.5]} 19... Bc5 {[%clk 0:01:26.3]} 20. Rcd1 {[%clk 0:01:29.1]}
20... b5 {[%clk 0:01:24.8]} 21. Bb3 {[%clk 0:00:58.2]} 21... Rab8 {[%clk
0:01:16.7]} 22. axb5 {[%clk 0:00:55.8]} 22... axb5 {[%clk 0:01:17.6]} 23. Kf2
{[%clk 0:00:49.9]} 23... Ra8 {[%clk 0:01:07.4]} 24. h3 {[%clk 0:00:46.7]} 24...
b4 {[%clk 0:01:02.3]} 25. Na2 {[%clk 0:00:43.9]} 25... Be4 {[%clk 0:00:54.7]}
26. R3d2 {[%clk 0:00:29.2]} 26... Bd5 {[%clk 0:00:44.4]} 27. Rxd5 {[%clk
0:00:19.8]} 27... Nxd5 {[%clk 0:00:37.5]} 28. Bxd5 {[%clk 0:00:19.3]} 28... exd5
{[%clk 0:00:37.4]} 29. Nxb4 {[%clk 0:00:20.2]} 29... Bxb4 {[%clk 0:00:27.6]} 30.
Bxb4+ {[%clk 0:00:21.1]} 30... Ke6 {[%clk 0:00:28.2]} 31. Bc3 {[%clk 0:00:20.8]}
31... f6 {[%clk 0:00:27.4]} 32. Kf3 {[%clk 0:00:21.3]} 32... Rc4 {[%clk
0:00:25.2]} 33. g4 {[%clk 0:00:21.3]} 33... g6 {[%clk 0:00:23.3]} 34. h4 {[%clk
0:00:19.7]} 34... Ra6 {[%clk 0:00:18.9]} 35. h5 {[%clk 0:00:19.5]} 35... gxh5
{[%clk 0:00:18.3]} 36. f5+ {[%clk 0:00:19.7]} 36... Kf7 {[%clk 0:00:16.6]} 37.
gxh5 {[%clk 0:00:20.6]} 37... Rc5 {[%clk 0:00:15.5]} 38. Bd4 {[%clk 0:00:19.5]}
38... Rc8 {[%clk 0:00:13.6]} 39. Bc3 {[%clk 0:00:19.1]} 39... Rc5 {[%clk
0:00:13.1]} 40. Bd4 {[%clk 0:00:18.5]} 40... Rc8 {[%clk 0:00:13.5]} 41. Bc3
{[%clk 0:00:19.4]} 41... Rc5 {[%clk 0:00:11.5]} 1/2-1/2

[Event "*** Titled Tuesday Blitz"]
[Site "Chess.com"]
[Date "2020.04.14"]
[Round "7"]
[White "kintoho"]
[Black "Savagelittlemole"]
[Result "1-0"]
[WhiteElo "2458"]
[BlackElo "2600"]
[TimeControl "180+1"]
[EndTime "11:14:12 PDT"]
[Termination "kintoho won by resignation"]

1. e4 {[%clk 0:03:00.9]} 1... c5 {[%clk 0:02:59.2]} 2. c3 {[%clk 0:03:00.2]}
2... Nf6 {[%clk 0:02:58.5]} 3. e5 {[%clk 0:03:00]} 3... Nd5 {[%clk 0:02:58.3]}
4. Nf3 {[%clk 0:03:00.3]} 4... Nc6 {[%clk 0:02:57.9]} 5. g3 {[%clk 0:02:59.8]}
5... d6 {[%clk 0:02:57.7]} 6. exd6 {[%clk 0:02:58.8]} 6... Qxd6 {[%clk
0:02:53.3]} 7. Bg2 {[%clk 0:02:58.5]} 7... e5 {[%clk 0:02:51.4]} 8. O-O {[%clk
0:02:57.6]} 8... Be7 {[%clk 0:02:51.4]} 9. d4 {[%clk 0:02:55.7]} 9... cxd4
{[%clk 0:02:46.3]} 10. Na3 {[%clk 0:02:55.3]} 10... O-O {[%clk 0:02:35.2]} 11.
cxd4 {[%clk 0:02:55.2]} 11... e4 {[%clk 0:02:14.6]} 12. Nc4 {[%clk 0:02:53.9]}
12... Qg6 {[%clk 0:01:59.1]} 13. Nfe5 {[%clk 0:02:52.5]} 13... Nxe5 {[%clk
0:01:20.9]} 14. Nxe5 {[%clk 0:02:51.4]} 14... Qa6 {[%clk 0:01:18.9]} 15. Bxe4
{[%clk 0:02:48.2]} 15... Be6 {[%clk 0:01:18.3]} 16. Bd3 {[%clk 0:02:37.6]} 16...
Qb6 {[%clk 0:01:16.6]} 17. Nc4 {[%clk 0:02:36.3]} 17... Qc7 {[%clk 0:01:14.3]}
18. Bd2 {[%clk 0:02:32.9]} 18... Bf6 {[%clk 0:01:11.2]} 19. Qe2 {[%clk
0:02:22.2]} 19... Rac8 {[%clk 0:01:08.2]} 20. Rac1 {[%clk 0:02:20.5]} 20... Qd8
{[%clk 0:01:04.5]} 21. Ne5 {[%clk 0:02:18]} 21... Rxc1 {[%clk 0:00:59.6]} 22.
Rxc1 {[%clk 0:02:15.2]} 22... Qb6 {[%clk 0:00:59.7]} 23. Qe4 {[%clk 0:02:06.5]}
23... g6 {[%clk 0:00:57.5]} 24. b3 {[%clk 0:02:03.5]} 24... Rd8 {[%clk 0:00:54]}
25. Nf3 {[%clk 0:01:40.2]} 25... Bf5 {[%clk 0:00:50.7]} 26. Qe2 {[%clk
0:01:40.1]} 26... Bxd3 {[%clk 0:00:49.8]} 27. Qxd3 {[%clk 0:01:40.3]} 27... Bg7
{[%clk 0:00:46.5]} 28. Kg2 {[%clk 0:01:35.3]} 28... Ne7 {[%clk 0:00:42.3]} 29.
Be3 {[%clk 0:01:33]} 29... Qd6 {[%clk 0:00:39.5]} 30. Qc4 {[%clk 0:01:29]} 30...
Nd5 {[%clk 0:00:36.9]} 31. Qc5 {[%clk 0:01:26.4]} 31... Qe6 {[%clk 0:00:34]} 32.
Re1 {[%clk 0:01:25.1]} 32... Qf5 {[%clk 0:00:27.9]} 33. Qxa7 {[%clk 0:01:22]}
33... Nxe3+ {[%clk 0:00:26.2]} 34. Rxe3 {[%clk 0:01:21.6]} 34... Qd5 {[%clk
0:00:24.4]} 35. Qc5 {[%clk 0:01:19.6]} 35... Qd7 {[%clk 0:00:24.7]} 36. d5
{[%clk 0:01:18.5]} 36... Bf8 {[%clk 0:00:21.8]} 37. Qc4 {[%clk 0:01:15.9]} 37...
b5 {[%clk 0:00:20]} 38. Qd3 {[%clk 0:01:11]} 38... Qxd5 {[%clk 0:00:19.3]} 39.
Qxd5 {[%clk 0:01:11.2]} 39... Rxd5 {[%clk 0:00:18.6]} 40. Re5 {[%clk 0:01:11.3]}
40... Rxe5 {[%clk 0:00:17.5]} 41. Nxe5 {[%clk 0:01:11.6]} 41... Ba3 {[%clk
0:00:16.4]} 42. Kf3 {[%clk 0:01:11.2]} 42... Kg7 {[%clk 0:00:14.3]} 43. Ke4
{[%clk 0:01:11.2]} 43... f5+ {[%clk 0:00:14.4]} 44. Kd5 {[%clk 0:01:11]} 44...
Kf6 {[%clk 0:00:14.7]} 45. Nd3 {[%clk 0:01:08.6]} 45... Kg5 {[%clk 0:00:14.6]}
46. h3 {[%clk 0:01:08.1]} 46... h5 {[%clk 0:00:14.2]} 47. f4+ {[%clk 0:01:06.8]}
47... Kf6 {[%clk 0:00:13.6]} 48. Kc6 {[%clk 0:01:06.9]} 48... b4 {[%clk
0:00:11.7]} 49. Kb5 {[%clk 0:01:06.5]} 49... g5 {[%clk 0:00:12.1]} 50. Nxb4
{[%clk 0:01:03.2]} 50... gxf4 {[%clk 0:00:12]} 51. gxf4 {[%clk 0:01:03.5]} 51...
Bc1 {[%clk 0:00:12.1]} 52. Nd3 {[%clk 0:01:03.2]} 52... Be3 {[%clk 0:00:11.8]}
53. Kc6 {[%clk 0:01:00.8]} 53... Ke6 {[%clk 0:00:12.1]} 54. b4 {[%clk 0:01:01]}
54... Bd2 {[%clk 0:00:10.5]} 55. b5 {[%clk 0:01:00.7]} 55... Ke7 {[%clk
0:00:10.5]} 56. b6 {[%clk 0:00:59]} 56... Kd8 {[%clk 0:00:10.9]} 57. b7 {[%clk
0:00:59.1]} 1-0

[Event "*** Titled Tuesday Blitz"]
[Site "Chess.com"]
[Date "2020.04.14"]
[Round "7"]
[White "SmoothAsAHedgehog"]
[Black "dmosesov"]
[Result "0-1"]
[WhiteElo "2663"]
[BlackElo "2538"]
[TimeControl "180+1"]
[EndTime "11:14:14 PDT"]
[Termination "dmosesov won on time"]

1. d4 {[%clk 0:03:00.9]} 1... Nf6 {[%clk 0:03:00.1]} 2. Nc3 {[%clk 0:02:59.9]}
2... d5 {[%clk 0:02:58.2]} 3. Bf4 {[%clk 0:02:58.6]} 3... a6 {[%clk 0:02:58]} 4.
e3 {[%clk 0:02:57.7]} 4... e6 {[%clk 0:02:58.2]} 5. Nf3 {[%clk 0:02:57]} 5...
Bd6 {[%clk 0:02:58.7]} 6. Bg3 {[%clk 0:02:53.3]} 6... c5 {[%clk 0:02:57.5]} 7.
Bd3 {[%clk 0:02:48.8]} 7... Nc6 {[%clk 0:02:57.3]} 8. O-O {[%clk 0:02:45.2]}
8... Bxg3 {[%clk 0:02:49.1]} 9. hxg3 {[%clk 0:02:44.9]} 9... Qd6 {[%clk
0:02:49.7]} 10. dxc5 {[%clk 0:02:42.3]} 10... Qxc5 {[%clk 0:02:49.6]} 11. e4
{[%clk 0:02:43]} 11... d4 {[%clk 0:02:34.4]} 12. Ne2 {[%clk 0:02:37.1]} 12... e5
{[%clk 0:02:34.4]} 13. c3 {[%clk 0:02:37]} 13... dxc3 {[%clk 0:02:30.6]} 14.
Nxc3 {[%clk 0:02:32.1]} 14... Bg4 {[%clk 0:02:31.2]} 15. Rc1 {[%clk 0:02:19.5]}
15... Qd6 {[%clk 0:02:16.7]} 16. Bc4 {[%clk 0:02:10.6]} 16... Rd8 {[%clk
0:02:09.9]} 17. Qxd6 {[%clk 0:01:58]} 17... Rxd6 {[%clk 0:02:10.8]} 18. Bd5
{[%clk 0:01:50.8]} 18... Bxf3 {[%clk 0:01:55.7]} 19. Bxc6+ {[%clk 0:01:44.6]}
19... Rxc6 {[%clk 0:01:54.4]} 20. gxf3 {[%clk 0:01:45.5]} 20... Ke7 {[%clk
0:01:50.1]} 21. Rfd1 {[%clk 0:01:24.4]} 21... Rd8 {[%clk 0:01:49.4]} 22. Kf1
{[%clk 0:01:20.6]} 22... Rd4 {[%clk 0:01:43.5]} 23. Ke2 {[%clk 0:00:43.4]} 23...
g5 {[%clk 0:01:28.2]} 24. Rd2 {[%clk 0:00:24.6]} 24... h5 {[%clk 0:01:19.6]} 25.
Rcd1 {[%clk 0:00:24.2]} 25... Rxd2+ {[%clk 0:01:16.5]} 26. Rxd2 {[%clk
0:00:25.1]} 26... Rd6 {[%clk 0:01:13.8]} 27. Rc2 {[%clk 0:00:24.4]} 27... Rd8
{[%clk 0:01:06]} 28. Rc1 {[%clk 0:00:24.4]} 28... h4 {[%clk 0:01:03.6]} 29. Rh1
{[%clk 0:00:24.1]} 29... Rh8 {[%clk 0:01:01.9]} 30. Rg1 {[%clk 0:00:15.4]} 30...
Ke6 {[%clk 0:00:49.2]} 31. Nd1 {[%clk 0:00:12.6]} 31... hxg3 {[%clk 0:00:32.9]}
32. Rxg3 {[%clk 0:00:10]} 32... Nh5 {[%clk 0:00:30.5]} 33. Rxg5 {[%clk
0:00:07.4]} 33... Nf4+ {[%clk 0:00:30.7]} 34. Kd2 {[%clk 0:00:07.8]} 34... Rd8+
{[%clk 0:00:29.4]} 35. Kc2 {[%clk 0:00:07.9]} 35... Nd3 {[%clk 0:00:20.7]} 36.
Rg3 {[%clk 0:00:01.3]} 36... f6 {[%clk 0:00:19.8]} 0-1

[Event "*** Titled Tuesday Blitz"]
[Site "Chess.com"]
[Date "2020.04.14"]
[Round "7"]
[White "silverback96"]
[Black "arctic_t00"]
[Result "1-0"]
[WhiteElo "2243"]
[BlackElo "2478"]
[TimeControl "180+1"]
[EndTime "11:14:16 PDT"]
[Termination "silverback96 won by resignation"]

1. d4 {[%clk 0:03:00.9]} 1... Nf6 {[%clk 0:02:59.6]} 2. c4 {[%clk 0:03:01.5]}
2... g6 {[%clk 0:02:59.7]} 3. g3 {[%clk 0:03:02]} 3... Bg7 {[%clk 0:03:00]} 4.
Bg2 {[%clk 0:03:02.6]} 4... O-O {[%clk 0:03:00.5]} 5. Nc3 {[%clk 0:03:03.1]}
5... d6 {[%clk 0:03:01]} 6. Nf3 {[%clk 0:03:03.6]} 6... Nc6 {[%clk 0:02:59.5]}
7. O-O {[%clk 0:03:03.9]} 7... Bf5 {[%clk 0:03:00]} 8. Bg5 {[%clk 0:03:01.2]}
8... h6 {[%clk 0:02:51.7]} 9. Bxf6 {[%clk 0:02:54.3]} 9... Bxf6 {[%clk
0:02:50.5]} 10. d5 {[%clk 0:02:54.8]} 10... Na5 {[%clk 0:02:37.6]} 11. Nd2
{[%clk 0:02:52.2]} 11... c5 {[%clk 0:02:20]} 12. e4 {[%clk 0:02:51.7]} 12... Bd7
{[%clk 0:02:15.8]} 13. Qe2 {[%clk 0:02:50.5]} 13... a6 {[%clk 0:02:14.4]} 14. f4
{[%clk 0:02:44.7]} 14... Bd4+ {[%clk 0:02:13.4]} 15. Kh1 {[%clk 0:02:45.2]}
15... Rb8 {[%clk 0:02:05]} 16. Nf3 {[%clk 0:02:43.1]} 16... Bg7 {[%clk
0:01:51.2]} 17. e5 {[%clk 0:02:33.1]} 17... Bg4 {[%clk 0:01:49.7]} 18. h3 {[%clk
0:02:21.9]} 18... Bxf3 {[%clk 0:01:49.3]} 19. Bxf3 {[%clk 0:02:22.8]} 19... b5
{[%clk 0:01:38.9]} 20. cxb5 {[%clk 0:02:18.2]} 20... axb5 {[%clk 0:01:39.8]} 21.
Nxb5 {[%clk 0:02:16.9]} 21... Qd7 {[%clk 0:01:39.3]} 22. a4 {[%clk 0:01:56]}
22... Qxh3+ {[%clk 0:01:38.9]} 23. Kg1 {[%clk 0:01:56.5]} 23... Qxg3+ {[%clk
0:01:38.4]} 24. Bg2 {[%clk 0:01:56.4]} 24... dxe5 {[%clk 0:01:26.4]} 25. Rf3
{[%clk 0:01:55.1]} 25... Qh4 {[%clk 0:01:20.9]} 26. fxe5 {[%clk 0:01:48]} 26...
Qc4 {[%clk 0:01:13.5]} 27. Qe1 {[%clk 0:01:29.4]} 27... Nb3 {[%clk 0:01:07.2]}
28. Ra3 {[%clk 0:01:27.2]} 28... Nd4 {[%clk 0:01:03.6]} 29. Nxd4 {[%clk
0:00:47.3]} 29... Qxd4+ {[%clk 0:01:04.5]} 30. Rf2 {[%clk 0:00:43.6]} 30... Rxb2
{[%clk 0:01:00.6]} 31. a5 {[%clk 0:00:26.5]} 31... Bxe5 {[%clk 0:00:58.4]} 32.
a6 {[%clk 0:00:26.9]} 32... Bg3 {[%clk 0:00:56.1]} 33. Rxg3 {[%clk 0:00:25.3]}
33... Rxf2 {[%clk 0:00:36.3]} 34. Qxf2 {[%clk 0:00:24.5]} 34... Qa1+ {[%clk
0:00:36.4]} 35. Qf1 {[%clk 0:00:23.9]} 35... Qd4+ {[%clk 0:00:36.3]} 36. Kh1
{[%clk 0:00:23.2]} 36... c4 {[%clk 0:00:34]} 37. Qc1 {[%clk 0:00:15.9]} 37...
Rc8 {[%clk 0:00:26.7]} 38. Qxh6 {[%clk 0:00:15.5]} 38... c3 {[%clk 0:00:24.8]}
39. Rh3 {[%clk 0:00:15.4]} 39... c2 {[%clk 0:00:22.5]} 40. Qh7+ {[%clk
0:00:14.5]} 40... Kf8 {[%clk 0:00:22.8]} 41. Qh8+ {[%clk 0:00:15.4]} 1-0

[Event "*** Titled Tuesday Blitz"]
[Site "Chess.com"]
[Date "2020.04.14"]
[Round "7"]
[White "mattcolins2025"]
[Black "karinachess1"]
[Result "0-1"]
[WhiteElo "2310"]
[BlackElo "2489"]
[TimeControl "180+1"]
[EndTime "11:14:16 PDT"]
[Termination "karinachess1 won by checkmate"]

1. d4 {[%clk 0:03:00.9]} 1... Nf6 {[%clk 0:02:59.1]} 2. c4 {[%clk 0:03:01.2]}
2... d6 {[%clk 0:02:59.1]} 3. Nc3 {[%clk 0:03:01.6]} 3... e5 {[%clk 0:02:59]} 4.
Nf3 {[%clk 0:03:01.2]} 4... e4 {[%clk 0:02:58.9]} 5. Ng5 {[%clk 0:02:55.8]} 5...
Qe7 {[%clk 0:02:58.9]} 6. g3 {[%clk 0:02:51.4]} 6... h6 {[%clk 0:02:57.2]} 7.
Nh3 {[%clk 0:02:51.5]} 7... Bf5 {[%clk 0:02:57]} 8. Bg2 {[%clk 0:02:51.1]} 8...
g5 {[%clk 0:02:56.1]} 9. Qc2 {[%clk 0:02:44.4]} 9... Bg7 {[%clk 0:02:50.8]} 10.
O-O {[%clk 0:02:38.9]} 10... Nc6 {[%clk 0:02:42.4]} 11. Be3 {[%clk 0:02:33.3]}
11... O-O {[%clk 0:02:39.7]} 12. Rfd1 {[%clk 0:02:20.4]} 12... Qd7 {[%clk
0:02:28.4]} 13. Nxg5 {[%clk 0:02:14.2]} 13... hxg5 {[%clk 0:02:28]} 14. Bxg5
{[%clk 0:02:14.3]} 14... e3 {[%clk 0:02:24.9]} 15. Qc1 {[%clk 0:02:13.4]} 15...
exf2+ {[%clk 0:02:24.7]} 16. Kxf2 {[%clk 0:02:13.5]} 16... Ng4+ {[%clk
0:02:23.7]} 17. Kg1 {[%clk 0:02:10.9]} 17... Bxd4+ {[%clk 0:02:18.1]} 18. e3
{[%clk 0:02:09.8]} 18... Bg7 {[%clk 0:02:17.7]} 19. h3 {[%clk 0:02:06.1]} 19...
Nge5 {[%clk 0:02:12.6]} 20. e4 {[%clk 0:02:03.9]} 20... Bxh3 {[%clk 0:02:09.7]}
21. Nd5 {[%clk 0:01:59.1]} 21... Qg4 {[%clk 0:01:54.6]} 22. Qe3 {[%clk
0:01:44.3]} 22... Nxc4 {[%clk 0:01:36.2]} 23. Qc1 {[%clk 0:01:27.9]} 23... Qxg3
{[%clk 0:01:31.3]} 24. Nf4 {[%clk 0:01:24.4]} 24... Qxg5 {[%clk 0:01:05.1]} 25.
Qxc4 {[%clk 0:01:21.2]} 25... Qxf4 {[%clk 0:00:58.8]} 26. Bxh3 {[%clk
0:01:21.2]} 26... Qg3+ {[%clk 0:00:58.6]} 27. Bg2 {[%clk 0:01:21.2]} 27... Ne5
{[%clk 0:00:57.3]} 28. Qe2 {[%clk 0:01:20.4]} 28... Ng4 {[%clk 0:00:56.2]} 29.
Rd3 {[%clk 0:01:17.7]} 29... Qh2+ {[%clk 0:00:51.6]} 30. Kf1 {[%clk 0:01:17.7]}
30... Qf4+ {[%clk 0:00:51.9]} 31. Kg1 {[%clk 0:01:11.6]} 31... c5 {[%clk
0:00:50.2]} 32. Bh3 {[%clk 0:00:49.7]} 32... Bd4+ {[%clk 0:00:25.9]} 33. Rxd4
{[%clk 0:00:49.1]} 33... Qg3+ {[%clk 0:00:25.7]} 34. Kh1 {[%clk 0:00:26.5]}
34... Qxh3+ {[%clk 0:00:22.3]} 35. Kg1 {[%clk 0:00:25.9]} 35... Qg3+ {[%clk
0:00:22.3]} 36. Kh1 {[%clk 0:00:23]} 36... Nf2+ {[%clk 0:00:20.6]} 37. Qxf2
{[%clk 0:00:23]} 37... Qxf2 {[%clk 0:00:21.5]} 38. Rd3 {[%clk 0:00:22.3]} 38...
Qh4+ {[%clk 0:00:20]} 39. Kg2 {[%clk 0:00:21]} 39... f6 {[%clk 0:00:18.8]} 40.
Rg1 {[%clk 0:00:19.7]} 40... Kf7 {[%clk 0:00:17.1]} 41. Rxd6 {[%clk 0:00:19.8]}
41... Qxe4+ {[%clk 0:00:16.4]} 42. Kh3 {[%clk 0:00:19.3]} 42... Rh8+ {[%clk
0:00:15.7]} 43. Kg3 {[%clk 0:00:19.6]} 43... Rag8+ {[%clk 0:00:16.2]} 44. Kf2
{[%clk 0:00:19.6]} 44... Rh2+ {[%clk 0:00:16.5]} 45. Kf1 {[%clk 0:00:19.1]}
45... Qe2# {[%clk 0:00:16.6]} 0-1

[Event "*** Titled Tuesday Blitz"]
[Site "Chess.com"]
[Date "2020.04.14"]
[Round "7"]
[White "Boudicca64"]
[Black "hongnhung1234"]
[Result "0-1"]
[WhiteElo "1979"]
[BlackElo "2134"]
[TimeControl "180+1"]
[EndTime "11:14:16 PDT"]
[Termination "hongnhung1234 won on time"]

1. e4 {[%clk 0:02:58]} 1... c5 {[%clk 0:02:59.7]} 2. g3 {[%clk 0:02:56.4]} 2...
e6 {[%clk 0:02:59.5]} 3. Bg2 {[%clk 0:02:55.1]} 3... Nc6 {[%clk 0:02:59.8]} 4.
c3 {[%clk 0:02:53.7]} 4... d6 {[%clk 0:02:57.5]} 5. Ne2 {[%clk 0:02:51.9]} 5...
Nge7 {[%clk 0:02:57]} 6. O-O {[%clk 0:02:50.3]} 6... g6 {[%clk 0:02:57.2]} 7. d4
{[%clk 0:02:49.7]} 7... cxd4 {[%clk 0:02:57]} 8. cxd4 {[%clk 0:02:48.6]} 8...
Bg7 {[%clk 0:02:57.3]} 9. Nbc3 {[%clk 0:02:47.4]} 9... O-O {[%clk 0:02:56.9]}
10. Be3 {[%clk 0:02:46.8]} 10... b6 {[%clk 0:02:55.5]} 11. f4 {[%clk 0:02:42.8]}
11... Bb7 {[%clk 0:02:54.5]} 12. Qd2 {[%clk 0:02:41.3]} 12... f5 {[%clk
0:02:49.8]} 13. d5 {[%clk 0:02:28.9]} 13... Na5 {[%clk 0:02:06.7]} 14. dxe6
{[%clk 0:02:20.4]} 14... Nc4 {[%clk 0:02:05.9]} 15. Qd3 {[%clk 0:02:16.2]} 15...
Nxe3 {[%clk 0:02:02.9]} 16. Qxe3 {[%clk 0:02:14.6]} 16... fxe4 {[%clk
0:01:48.3]} 17. Bxe4 {[%clk 0:02:12.3]} 17... d5 {[%clk 0:01:47.1]} 18. Rad1
{[%clk 0:02:03.9]} 18... Qd6 {[%clk 0:01:46]} 19. Bg2 {[%clk 0:01:06.2]} 19...
Nf5 {[%clk 0:01:20]} 20. Qd3 {[%clk 0:00:55.3]} 20... Qxe6 {[%clk 0:01:14.9]}
21. Nxd5 {[%clk 0:00:50.6]} 21... Qf7 {[%clk 0:00:59.7]} 22. Nec3 {[%clk
0:00:34.1]} 22... Rad8 {[%clk 0:00:57.3]} 23. Qc4 {[%clk 0:00:24.1]} 23... Kh8
{[%clk 0:00:52.9]} 24. Qc7 {[%clk 0:00:18.9]} 24... Bxd5 {[%clk 0:00:39.5]} 25.
Nxd5 {[%clk 0:00:16.5]} 25... Bd4+ {[%clk 0:00:21.7]} 26. Rxd4 {[%clk
0:00:12.5]} 26... Qxc7 {[%clk 0:00:16.9]} 27. Nxc7 {[%clk 0:00:11]} 27... Nxd4
{[%clk 0:00:17]} 28. Nd5 {[%clk 0:00:09.8]} 28... Kg7 {[%clk 0:00:15.7]} 29. Rd1
{[%clk 0:00:09.3]} 29... Nf5 {[%clk 0:00:15.5]} 30. g4 {[%clk 0:00:07.5]} 30...
Ne7 {[%clk 0:00:14.6]} 31. Re1 {[%clk 0:00:07.8]} 31... Nxd5 {[%clk 0:00:14.2]}
32. Bxd5 {[%clk 0:00:07.6]} 32... Rxd5 {[%clk 0:00:15.1]} 33. Re7+ {[%clk
0:00:07.3]} 33... Rf7 {[%clk 0:00:15.5]} 34. f5 {[%clk 0:00:07.3]} 34... Rxe7
{[%clk 0:00:15.3]} 35. f6+ {[%clk 0:00:07.3]} 35... Kxf6 {[%clk 0:00:15.4]} 0-1